bitfinex/quotes_SOLUSD_20250421
["timestamp","ask_amount","ask_price","bid_price","bid_amount"]
[1745261154425,46.0,135.35,135.32,0.063]
[1745261154743,46.0,135.35,135.32,22.97958551]
[1745261155110,20.0,135.37,135.32,22.97958551]
[1745261155308,68.91658551,135.37,135.32,22.97958551]
[1745261155508,68.91658551,135.37,135.33,7.38934456]
[1745261155509,46.0,135.37,135.33,7.38934456]
[1745261155827,68.91658551,135.37,135.33,7.38934456]
[1745261156026,22.91658551,135.36,135.33,7.38934456]
[1745261156637,53.38731756,135.37,135.33,7.38934456]
[1745261156808,22.91658551,135.36,135.32,7.45262394]
[1745261157535,42.91658551,135.35,135.32,0.063]
[1745261157714,22.91658551,135.34,135.32,0.063]
[1745261158910,20.0,135.35,135.32,7.45288919]
[1745261159134,42.91658551,135.35,135.32,7.45288919]
[1745261159828,42.91658551,135.35,135.32,0.063]
[1745261160009,20.0,135.35,135.32,0.063]
[1745261160209,42.91658551,135.35,135.32,0.063]
[1745261160609,68.91658551,135.37,135.32,22.97958551]
[1745261161241,68.91658551,135.37,135.33,22.91658551]
[1745261161912,76.30386305,135.37,135.32,30.36908236]
[1745261162117,22.91658551,135.36,135.32,7.45249685]
[1745261163008,22.91658551,135.35,135.32,7.45249685]
[1745261163213,22.91658551,135.34,135.32,0.063]
[1745261163609,42.91658551,135.33,135.32,0.063]
[1745261164032,50.30593007,135.33,135.32,0.063]
[1745261164421,50.44809164,135.33,135.32,0.063]
[1745261166337,26.0,135.34,135.32,22.97958551]
[1745261166532,20.0,135.36,135.33,22.91658551]
[1745261166916,26.0,135.34,135.32,22.97958551]
[1745261168142,26.0,135.34,135.32,0.063]
[1745261168633,26.0,135.34,135.32,7.45289062]
[1745261171345,26.0,135.34,135.32,0.063]
[1745261171541,46.0,135.34,135.32,0.063]
[1745261174324,68.91658551,135.34,135.32,0.063]
[1745261174529,22.91658551,135.33,135.32,0.063]
[1745261175241,23.05874708,135.33,135.32,0.063]
[1745261175636,30.44809164,135.33,135.32,0.063]
[1745261176431,49.0977405,135.33,135.32,0.063]
[1745261184157,49.05874708,135.33,135.32,0.063]
[1745261184336,48.91658551,135.33,135.32,0.063]
[1745261185148,26.0,135.33,135.32,0.063]
[1745261185357,48.91658551,135.33,135.32,0.063]
[1745261187276,26.0,135.33,135.32,0.063]
[1745261188154,48.91658551,135.33,135.32,0.063]
[1745261188363,56.30593007,135.33,135.32,0.063]
[1745261189061,56.44809164,135.33,135.32,0.063]
[1745261189261,75.0977405,135.33,135.32,0.063]
[1745261189565,49.0977405,135.33,135.32,0.063]
[1745261191456,52.74227035,135.33,135.32,0.063]
[1745261191656,49.0977405,135.33,135.32,0.063]
[1745261193172,56.44809164,135.33,135.32,0.063]
[1745261193363,26.0,135.33,135.32,0.063]
[1745261193866,48.91658551,135.33,135.32,0.063]
[1745261194075,22.91658551,135.33,135.32,0.063]
[1745261194647,42.91658551,135.34,135.32,0.063]
[1745261194866,20.0,135.34,135.32,0.063]
[1745261195075,26.0,135.33,135.32,0.063]
[1745261195368,20.0,135.34,135.32,0.063]
[1745261196055,20.0,135.38,135.33,22.91658551]
[1745261196373,20.0,135.38,135.36,30.30407326]
[1745261196558,20.0,135.38,135.36,7.38748775]
[1745261198376,46.0,135.4,135.36,30.30407326]
[1745261199071,20.0,135.42,135.38,22.91658551]
[1745261199377,46.0,135.42,135.38,22.91658551]
[1745261199573,46.0,135.42,135.36,113.82855488]
[1745261199775,68.91658551,135.42,135.37,22.91658551]
[1745261199981,42.91658551,135.42,135.37,22.91658551]
[1745261200450,68.91658551,135.42,135.37,22.91658551]
[1745261200656,46.0,135.42,135.36,113.82855488]
[1745261200856,46.0,135.42,135.38,22.91658551]
[1745261201780,68.91658551,135.42,135.38,22.91658551]
[1745261201975,76.30115017,135.42,135.37,22.91658551]
[1745261202679,20.0,135.39,135.36,89.18748775]
[1745261202858,20.0,135.39,135.36,112.10407326]
[1745261204788,22.91658551,135.38,135.33,110.88838551]
[1745261204956,20.0,135.37,135.33,110.88838551]
[1745261205152,22.91658551,135.36,135.33,81.8]
[1745261205461,22.91658551,135.34,135.32,0.063]
[1745261205667,22.91658551,135.33,135.32,0.063]
[1745261206065,42.91658551,135.33,135.32,0.063]
[1745261207363,76.44809164,135.33,135.32,0.063]
[1745261208076,95.0977405,135.33,135.32,0.063]
[1745261210386,20.0,135.28,135.26,0.063]
[1745261210584,20.0,135.28,135.26,7.45608677]
[1745261211773,20.0,135.28,135.26,0.063]
[1745261217286,42.91658551,135.28,135.26,0.063]
[1745261217489,22.91658551,135.27,135.26,0.063]
[1745261218767,42.91658551,135.28,135.26,0.063]
[1745261218992,22.91658551,135.27,135.26,0.063]
[1745261221070,30.45136924,135.27,135.26,0.063]
[1745261221271,56.45136924,135.27,135.26,0.063]
[1745261221880,75.1010181,135.27,135.26,0.063]
[1745261222192,75.1010181,135.27,135.25,0.063]
[1745261222193,38.79181043,135.26,135.25,0.063]
[1745261222390,61.70839594,135.26,135.25,0.063]
[1745261223289,69.10156465,135.26,135.25,0.063]
[1745261224702,38.79181043,135.26,135.25,0.063]
[1745261224876,42.91658551,135.26,135.25,0.063]
[1745261225077,20.0,135.26,135.25,0.063]
[1745261225978,42.91658551,135.26,135.25,0.063]
[1745261226373,20.0,135.26,135.25,0.063]
[1745261226891,42.91658551,135.26,135.25,0.063]
[1745261227504,43.05874708,135.26,135.25,0.063]
[1745261228709,20.0,135.26,135.25,0.063]
[1745261228993,46.0,135.28,135.25,22.97958551]
[1745261229288,20.0,135.28,135.26,22.91658551]
[1745261229492,20.0,135.28,135.25,22.97958551]
[1745261229989,68.91658551,135.3,135.25,22.97958551]
[1745261230177,46.0,135.3,135.26,22.91658551]
[1745261230377,68.91658551,135.3,135.25,0.063]
[1745261230581,22.91658551,135.29,135.25,22.97958551]
[1745261231205,46.0,135.3,135.26,30.30975422]
[1745261231382,68.91658551,135.3,135.26,30.30975422]
[1745261231683,22.91658551,135.29,135.26,7.39316871]
[1745261232217,22.91658551,135.27,135.25,0.063]
[1745261232400,23.05874708,135.26,135.25,0.063]
[1745261232577,41.70839594,135.26,135.25,0.063]
[1745261232883,64.64964886,135.25,135.24,0.063]
[1745261233089,87.70839594,135.25,135.24,0.063]
[1745261233399,95.10211128,135.25,135.24,0.063]
[1745261239202,92.01869679,135.25,135.24,0.063]
[1745261239410,0.14216157,135.24,135.23,0.063]
[1745261239601,64.62498145,135.24,135.23,0.063]
[1745261241212,38.64964886,135.23,135.22,0.063]
[1745261241390,0.14216157,135.22,135.21,0.063]
[1745261241709,18.79181043,135.2,135.19,0.063]
[1745261241913,41.70839594,135.2,135.19,0.063]
[1745261243117,49.10484564,135.2,135.19,0.063]
[1745261248522,48.96268407,135.2,135.19,0.063]
[1745261249295,26.0,135.2,135.19,0.063]
[1745261249613,20.0,135.21,135.19,0.063]
[1745261249996,42.91658551,135.21,135.19,0.063]
[1745261250405,50.31259536,135.21,135.19,0.063]
[1745261250606,22.91658551,135.2,135.19,0.063]
[1745261250909,48.91658551,135.2,135.19,0.063]
[1745261251330,49.05874708,135.2,135.19,0.063]
[1745261251516,67.70839594,135.2,135.19,0.063]
[1745261252297,75.10484564,135.2,135.19,0.063]
[1745261254495,49.10484564,135.2,135.19,0.063]
[1745261263657,65.42484564,135.2,135.19,0.063]
[1745261267253,42.50826013,135.2,135.19,0.063]
[1745261267437,65.42484564,135.2,135.19,0.063]
[1745261270068,20.14216157,135.19,135.18,0.063]
[1745261270264,46.14216157,135.17,135.16,1e-08]
[1745261270472,0.14216157,135.16,135.15,0.04300001]
[1745261270765,30.45738573,135.16,135.15,0.04300001]
[1745261271765,22.25785521,135.16,135.15,0.04300001]
[1745261272356,26.02837618,135.16,135.15,0.04300001]
[1745261272547,44.67802504,135.16,135.15,0.04300001]
[1745261273069,46.14216157,135.15,135.13,0.063]
[1745261273278,77.17921656,135.15,135.13,0.063]
[1745261274250,84.57840264,135.15,135.13,0.063]
[1745261277947,103.2280515,135.15,135.13,0.063]
[1745261278357,77.17921656,135.15,135.13,0.063]
[1745261278547,77.03705499,135.15,135.13,0.063]
[1745261278760,84.43624107,135.15,135.13,0.063]
[1745261278964,77.03705499,135.15,135.13,0.063]
[1745261280449,84.43624107,135.15,135.13,0.063]
[1745261280647,84.57840264,135.15,135.13,0.063]
[1745261281175,103.2280515,135.15,135.13,0.063]
[1745261281953,84.57840264,135.15,135.13,0.063]
[1745261283379,57.2280515,135.15,135.13,0.063]
[1745261283562,18.64964886,135.14,135.13,0.063]
[1745261283752,33.36670385,135.14,135.13,0.063]
[1745261284251,14.85921656,135.14,135.13,0.063]
[1745261285373,48.25895016,135.14,135.13,0.063]
[1745261290286,40.71705499,135.14,135.13,0.063]
[1745261291185,20.0,135.17,135.14,1.5801]
[1745261291358,34.71705499,135.17,135.14,1.5801]
[1745261291561,60.71705499,135.17,135.14,1.5801]
[1745261291886,60.71705499,135.17,135.14,8.97980479]
[1745261292183,34.71705499,135.17,135.14,8.97980479]
[1745261292687,60.71705499,135.17,135.14,8.97980479]
[1745261293094,60.71705499,135.17,135.14,1.5801]
[1745261294292,14.71705499,135.16,135.14,1.5801]
[1745261294668,14.71705499,135.15,135.14,1.5801]
[1745261294871,34.71705499,135.15,135.13,0.063]
[1745261295083,14.71705499,135.14,135.13,0.063]
[1745261295279,14.85921656,135.14,135.13,0.063]
[1745261295469,40.85921656,135.14,135.13,0.063]
[1745261296190,26.14216157,135.14,135.13,0.063]
[1745261296371,40.85921656,135.14,135.13,0.063]
[1745261296997,40.71705499,135.14,135.13,0.063]
[1745261297174,26.0,135.14,135.13,0.063]
[1745261297976,26.0,135.16,135.13,14.78005499]
[1745261298392,26.0,135.16,135.13,0.063]
[1745261298569,40.71705499,135.16,135.13,0.063]
[1745261300700,26.0,135.16,135.13,0.063]
[1745261302002,40.71705499,135.16,135.13,0.063]
[1745261302371,14.71705499,135.15,135.13,0.063]
[1745261302605,14.71705499,135.14,135.13,0.063]
[1745261302897,20.0,135.15,135.13,0.063]
[1745261302898,34.71705499,135.15,135.13,0.063]
[1745261303197,20.0,135.15,135.13,0.063]
[1745261303490,26.0,135.16,135.13,0.063]
[1745261304606,26.0,135.16,135.13,7.46328121]
[1745261305383,40.71705499,135.16,135.13,7.46328121]
[1745261306681,34.71705499,135.15,135.13,0.063]
[1745261306890,20.0,135.15,135.13,0.063]
[1745261310399,34.71705499,135.15,135.13,0.063]
[1745261310603,14.71705499,135.14,135.13,0.063]
[1745261311783,22.25895016,135.14,135.13,0.063]
[1745261312097,57.20859902,135.14,135.13,0.063]
[1745261318479,31.15921656,135.14,135.13,0.063]
[1745261318778,38.55895016,135.14,135.13,0.063]
[1745261320289,57.20859902,135.14,135.13,0.063]
[1745261325892,16.3,135.14,135.13,0.063]
[1745261326082,31.01705499,135.14,135.13,0.063]
[1745261326411,31.15921656,135.14,135.13,0.063]
[1745261326599,16.44216157,135.14,135.13,0.063]
[1745261326904,31.15921656,135.14,135.13,0.063]
[1745261327299,38.55895016,135.14,135.13,0.063]
[1745261327485,22.25895016,135.14,135.13,0.063]
[1745261328005,14.85921656,135.14,135.13,0.063]
[1745261328217,22.25895016,135.14,135.13,0.063]
[1745261328505,14.85921656,135.14,135.13,0.063]
[1745261328918,22.25895016,135.14,135.13,0.063]
[1745261329399,40.90859902,135.14,135.13,0.063]
[1745261337195,57.18859902,135.14,135.13,0.063]
[1745261341324,42.47154403,135.14,135.13,0.063]
[1745261341622,57.18859902,135.14,135.13,0.063]
[1745261341814,42.47154403,135.14,135.13,0.063]
[1745261341997,57.18859902,135.14,135.13,0.063]
[1745261345122,57.18859902,135.14,135.1,0.063]
[1745261345123,20.0,135.11,135.1,0.063]
[1745261345305,60.85921656,135.11,135.1,0.063]
[1745261345497,79.50886542,135.11,135.1,0.063]
[1745261345703,64.79181043,135.11,135.1,0.063]
[1745261346002,79.50886542,135.11,135.1,0.063]
[1745261346521,86.91024207,135.11,135.1,0.063]
[1745261348803,46.0,135.11,135.1,0.063]
[1745261349010,20.0,135.13,135.1,0.063]
[1745261349437,16.28,135.14,135.1,14.78005499]
[1745261349734,16.28,135.14,135.11,14.71705499]
[1745261349943,281.31828982,135.17,135.13,14.71705499]
[1745261352142,314.63705499,135.17,135.13,22.11721877]
[1745261352512,322.03521709,135.17,135.13,22.11721877]
[1745261353124,322.03521709,135.17,135.13,7.40016378]
[1745261354142,322.03521709,135.17,135.12,7.40082889]
[1745261354438,322.03521709,135.17,135.12,22.11788388]
[1745261354737,68.11521709,135.17,135.12,22.11788388]
[1745261355223,14.71705499,135.16,135.12,22.11788388]
[1745261356726,68.11521709,135.17,135.12,22.11788388]
[1745261357231,14.71705499,135.16,135.12,7.40082889]
[1745261357534,14.71705499,135.16,135.12,22.11788388]
[1745261358354,22.11592868,135.16,135.11,15.24069822]
[1745261358519,14.71705499,135.13,135.11,1.6626]
[1745261358717,34.71705499,135.13,135.1,81.863]
[1745261359619,14.71705499,135.12,135.1,81.863]
[1745261360141,42.1175574,135.13,135.1,81.863]
[1745261360548,60.85921656,135.11,135.1,0.063]
[1745261361445,79.50886542,135.11,135.1,0.063]
[1745261361647,86.91024207,135.11,135.1,0.063]
[1745261363550,68.26059321,135.11,135.1,0.063]
[1745261363725,46.0,135.11,135.1,0.063]
[1745261364234,26.0,135.11,135.1,0.063]
[1745261364630,26.0,135.11,135.1,1.5829]
[1745261365126,42.11536274,135.17,135.11,6.2856]
[1745261365333,34.71705499,135.17,135.13,14.71705499]
[1745261365537,60.71705499,135.17,135.13,22.11685207]
[1745261365745,23.65756702,135.18,135.14,14.71705499]
[1745261366044,30.97705499,135.18,135.14,14.71705499]
[1745261366244,56.97705499,135.18,135.13,22.11685207]
[1745261366543,38.37464448,135.18,135.13,22.11685207]
[1745261366721,64.37464448,135.18,135.13,22.11685207]
[1745261368327,56.97705499,135.18,135.14,14.71705499]
[1745261369027,64.37469405,135.18,135.13,22.11685207]
[1745261369225,14.71705499,135.17,135.13,22.11685207]
[1745261371745,14.71705499,135.17,135.12,7.40082889]
[1745261372052,64.37469405,135.18,135.13,14.71705499]
[1745261372948,64.37469405,135.18,135.13,22.11679113]
[1745261376036,42.26,135.18,135.15,14.71705499]
[1745261377139,42.26,135.18,135.14,14.71705499]
[1745261377350,49.65754512,135.18,135.14,14.71705499]
[1745261378551,64.37460011,135.18,135.14,14.71705499]
[1745261380561,38.37460011,135.18,135.14,14.71705499]
[1745261380864,38.37460011,135.18,135.13,89.20020116]
[1745261381065,38.37460011,135.18,135.14,14.71705499]
[1745261381488,14.71705499,135.17,135.13,96.51705499]
[1745261381963,38.37460011,135.18,135.13,96.51705499]
[1745261382457,38.37460011,135.18,135.14,14.71705499]
[1745261383158,23.65754512,135.18,135.14,14.71705499]
[1745261385857,16.26,135.18,135.15,14.71705499]
[1745261386063,16.26,135.18,135.14,7.39965877]
[1745261386064,16.26,135.18,135.16,14.71705499]
[1745261386247,16.26,135.18,135.15,14.71705499]
[1745261387037,23.65779468,135.18,135.15,14.71705499]
[1745261387243,23.65779468,135.18,135.14,22.11671376]
[1745261387451,16.26,135.18,135.14,22.11671376]
[1745261387654,68.11427536,135.19,135.14,22.11671376]
[1745261388571,68.11427536,135.19,135.14,7.39965877]
[1745261388748,68.11427536,135.19,135.14,22.11671376]
[1745261389062,68.11427536,135.19,135.14,7.39965877]
[1745261389363,0.03,135.2,135.18,14.71705499]
[1745261389740,0.03,135.2,135.19,14.71705499]
[1745261390642,0.03,135.2,135.19,22.1140518]
[1745261391544,0.03,135.2,135.18,22.11432753]
[1745261392348,0.03,135.2,135.17,7.39782522]
[1745261392557,0.03,135.2,135.17,22.11488021]
[1745261393653,0.03,135.2,135.18,14.71705499]
[1745261394057,0.03,135.2,135.19,14.71705499]
[1745261395270,0.03,135.2,135.19,22.1140518]
[1745261396948,0.03,135.2,135.19,23.6681518]
[1745261397557,0.03,135.2,135.19,105.4681518]
[1745261401675,0.03,135.2,135.19,103.9140518]
[1745261401886,0.03,135.2,135.19,81.8]
[1745261402559,0.03,135.2,135.19,89.19699681]
[1745261402971,0.03,135.2,135.19,103.9140518]
[1745261405675,0.03,135.2,135.19,89.19699681]
[1745261405872,0.03,135.2,135.19,81.8]
[1745261406178,14.74705499,135.2,135.19,81.8]
[1745261407383,0.03,135.2,135.19,81.8]
[1745261410792,0.03,135.2,135.17,30.36669133]
[1745261412365,0.03,135.2,135.19,22.9689005]
[1745261413370,0.03,135.2,135.19,30.36589731]
[1745261414062,0.03,135.2,135.19,7.39699681]
[1745261414382,0.03,135.2,135.16,30.36753915]
[1745261414692,0.03,135.2,135.16,7.39863865]
[1745261414872,0.03,135.2,135.16,30.36753915]
[1745261415269,0.03,135.2,135.16,7.39863865]
[1745261415887,0.03,135.2,135.16,30.36753915]
[1745261416185,0.03,135.2,135.17,22.9689005]
[1745261416790,0.03,135.2,135.16,7.39863865]
[1745261416974,42.9989005,135.2,135.16,89.19863865]
[1745261417171,22.9689005,135.19,135.16,89.19863865]
[1745261417487,22.9689005,135.18,135.16,81.8]
[1745261417693,22.9689005,135.19,135.16,81.8]
[1745261418770,22.9689005,135.18,135.16,81.8]
[1745261421292,26.0,135.16,135.11,7.40137665]
[1745261421590,22.9689005,135.14,135.11,7.40137665]
[1745261421789,22.9689005,135.15,135.11,7.40137665]
[1745261422090,26.0,135.16,135.12,22.9689005]
[1745261423599,26.0,135.16,135.12,30.36942821]
[1745261423889,48.9689005,135.16,135.12,7.40052771]
[1745261426292,48.9689005,135.16,135.12,30.36942821]
[1745261426522,7.39787804,135.18,135.13,22.9689005]
[1745261426670,26.0,135.17,135.13,104.7689005]
[1745261426870,26.0,135.16,135.13,104.7689005]
[1745261427064,26.0,135.17,135.13,104.7689005]
[1745261428669,26.0,135.17,135.13,112.16890344]
[1745261429375,30.36654456,135.18,135.13,112.16890344]
[1745261429691,56.36654456,135.18,135.13,112.16890344]
[1745261431304,50.36717874,135.17,135.13,81.8]
[1745261431591,22.9689005,135.16,135.13,81.8]
[1745261432567,0.03,135.2,135.15,22.9689005]
[1745261432770,0.03,135.2,135.17,22.9689005]
[1745261433390,0.03,135.2,135.17,14.69854067]
[1745261433581,27.4264536,135.2,135.16,14.69854067]
[1745261434272,42.12499427,135.2,135.15,14.69854067]
[1745261434480,42.12499427,135.2,135.15,22.09732307]
[1745261434672,34.72854067,135.2,135.15,22.09732307]
[1745261435178,34.72854067,135.2,135.15,7.3987824]
[1745261435387,43.00368109,135.2,135.15,30.37246349]
[1745261437810,43.00368109,135.2,135.16,22.97368109]
[1745261438019,20.03,135.2,135.16,22.97368109]
[1745261439106,43.00368109,135.2,135.16,30.37182658]
[1745261439318,43.00368109,135.2,135.16,7.39814549]
[1745261439912,20.03,135.2,135.16,30.37182658]
[1745261441601,20.03,135.2,135.16,7.39814549]
[1745261441798,20.03,135.2,135.16,30.37182658]
[1745261442391,43.00368109,135.2,135.16,7.39814549]
[1745261442599,50.40019568,135.2,135.16,7.39814549]
[1745261442800,20.03,135.2,135.16,7.39814549]
[1745261443001,43.00368109,135.2,135.16,7.39814549]
[1745261443213,27.42649263,135.2,135.16,7.39814549]
[1745261443714,42.97368109,135.17,135.12,7.40082889]
[1745261443896,22.97368109,135.14,135.11,89.20114363]
[1745261444393,22.97368109,135.15,135.11,89.20114363]
[1745261444603,22.97368109,135.14,135.11,81.8]
[1745261445939,22.97368109,135.15,135.11,89.20121041]
[1745261446238,22.97368109,135.15,135.11,81.8]
[1745261447122,22.97368109,135.15,135.11,112.17504881]
[1745261447837,50.3732893,135.15,135.11,81.8]
[1745261450517,42.97368109,135.15,135.12,7.40082889]
[1745261450716,20.0,135.15,135.12,7.40082889]
[1745261450951,20.0,135.15,135.11,112.1748586]
[1745261451329,20.0,135.15,135.12,22.97368109]
[1745261452228,50.37198583,135.17,135.13,22.97368109]
[1745261455819,27.39830474,135.17,135.13,22.97368109]
[1745261457345,50.37198583,135.17,135.13,22.97368109]
[1745261457728,42.10715225,135.17,135.13,14.70884751]
[1745261460845,34.70884751,135.15,135.11,81.8]
[1745261461546,27.39830474,135.17,135.14,14.70884751]
[1745261461846,27.39830474,135.17,135.13,14.70884751]
[1745261462438,27.39830474,135.17,135.13,22.10908245]
[1745261463040,20.0,135.17,135.13,22.10908245]
[1745261463846,20.0,135.17,135.14,14.70884751]
[1745261464351,20.0,135.17,135.14,22.10842797]
[1745261465045,20.03,135.2,135.16,14.70884751]
[1745261465256,20.03,135.2,135.18,14.70884751]
[1745261466836,20.03,135.2,135.17,22.10682091]
[1745261467253,20.03,135.2,135.17,14.70884751]
[1745261467453,27.42656499,135.2,135.16,22.9706035]
[1745261467627,22.9706035,135.19,135.15,22.9706035]
[1745261467957,22.9706035,135.19,135.14,112.169987]
[1745261468130,27.42656499,135.2,135.15,22.9706035]
[1745261468330,50.39716849,135.2,135.15,22.9706035]
[1745261469050,50.39716849,135.2,135.15,30.36976706]
[1745261469554,50.39716849,135.2,135.15,22.9706035]
[1745261469731,50.39716849,135.2,135.15,30.3697547]
[1745261469927,22.9706035,135.19,135.15,7.3991512]
[1745261470241,50.39716849,135.2,135.15,30.3697547]
[1745261472331,22.9706035,135.19,135.14,112.17007651]
[1745261472659,22.9706035,135.17,135.14,81.8]
[1745261472955,22.9706035,135.15,135.14,81.8]
[1745261473151,22.9706035,135.15,135.1,112.23527584]
[1745261473655,30.36979044,135.15,135.11,22.9706035]
[1745261475056,30.36979044,135.15,135.11,30.37189801]
[1745261475354,30.36979044,135.15,135.11,7.40129451]
[1745261475870,30.36979044,135.15,135.11,30.37189801]
[1745261476950,30.36979044,135.15,135.11,7.40129451]
[1745261477552,22.9706035,135.15,135.11,30.37189801]
[1745261477736,50.36946261,135.16,135.11,30.37189801]
[1745261480559,30.36995849,135.15,135.11,30.37189801]
[1745261481955,22.9706035,135.15,135.11,30.37189801]
[1745261482458,20.0,135.16,135.13,22.9706035]
[1745261483855,20.0,135.16,135.11,7.40129451]
[1745261484064,50.36925959,135.16,135.12,22.9706035]
[1745261484451,20.0,135.14,135.1,89.26472696]
[1745261484764,20.0,135.14,135.1,112.23533046]
[1745261485342,20.0,135.14,135.1,89.26472696]
[1745261485541,20.0,135.14,135.1,112.23533046]
[1745261486362,53.39879246,135.16,135.1,112.23533046]
[1745261486540,68.9706035,135.16,135.11,22.9706035]
[1745261487363,46.0,135.16,135.1,89.26472696]
[1745261487545,76.36930011,135.16,135.12,7.40082889]
[1745261489347,68.1105246,135.16,135.11,22.11320464]
[1745261489551,60.71182799,135.16,135.11,22.11320464]
[1745261489751,26.0,135.16,135.13,14.71182799]
[1745261491047,40.71182799,135.16,135.12,14.71182799]
[1745261491244,26.0,135.16,135.12,14.71182799]
[1745261491461,26.0,135.16,135.12,22.1121996]
[1745261492474,68.1104961,135.16,135.11,22.11293924]
[1745261496665,14.71182799,135.15,135.11,7.40111125]
[1745261497061,68.1104961,135.16,135.11,22.11293924]
[1745261497450,46.0,135.16,135.12,14.71182799]
[1745261497869,46.0,135.16,135.13,14.71182799]
[1745261498443,46.0,135.16,135.13,22.11198929]
[1745261498642,68.11063052,135.16,135.11,22.11320464]
[1745261499176,20.0,135.16,135.13,14.71182799]
[1745261499558,26.0,135.17,135.13,14.71182799]
[1745261500248,16.2,135.19,135.16,14.71182799]
[1745261500451,16.2,135.19,135.17,14.71182799]
[1745261500648,20.03,135.2,135.17,14.71182799]
[1745261501170,0.03,135.2,135.18,14.71182799]
[1745261502359,0.03,135.2,135.19,14.71182799]
[1745261502589,0.03,135.2,135.18,14.71182799]
[1745261502755,0.03,135.2,135.18,22.10904703]
[1745261503867,0.03,135.2,135.19,14.71182799]
[1745261504774,0.03,135.2,135.18,22.10904703]
[1745261504977,0.03,135.2,135.17,96.51182799]
[1745261505188,0.03,135.2,135.17,81.8]
[1745261505480,0.03,135.2,135.17,103.90989784]
[1745261506381,0.03,135.2,135.18,22.10922599]
[1745261509885,0.03,135.2,135.18,7.397398]
[1745261511464,0.03,135.2,135.18,22.10922599]
[1745261512087,20.0,135.12,135.1,0.063]
[1745261512265,34.71182799,135.15,135.1,14.77482799]
[1745261512980,14.71182799,135.14,135.1,0.063]
[1745261513297,20.0,135.13,135.1,0.063]
[1745261516598,50.39463858,135.13,135.1,0.063]
[1745261517779,27.4003154,135.13,135.1,0.063]
[1745261518181,50.39463858,135.13,135.1,0.063]
[1745261520304,20.0,135.13,135.1,23.05732318]
[1745261520520,20.0,135.13,135.1,0.063]
[1745261520883,22.99432318,135.12,135.1,0.063]
[1745261521508,50.39477788,135.13,135.1,0.063]
[1745261521804,61.78613361,135.11,135.1,0.063]
[1745261522309,77.96613361,135.11,135.1,0.063]
[1745261522691,36.18,135.11,135.1,0.063]
[1745261522892,68.99432318,135.13,135.1,0.063]
[1745261523185,46.0,135.13,135.1,0.063]
[1745261523706,22.99432318,135.11,135.1,0.063]
[1745261524410,42.99432318,135.11,135.1,0.063]
[1745261525214,0.03,135.21,135.12,0.14216157]
[1745261525501,0.03,135.21,135.19,22.99432318]
[1745261525895,0.03,135.21,135.18,22.99432318]
[1745261526301,0.03,135.21,135.19,22.99432318]
[1745261532611,0.03,135.21,135.18,22.99432318]
[1745261532815,0.03,135.21,135.19,22.99432318]
[1745261535626,23.02432318,135.2,135.12,100.30187277]
[1745261535791,30.39137741,135.19,135.15,22.99432318]
[1745261535991,30.39137741,135.19,135.13,7.40028121]
[1745261536191,30.39137741,135.19,135.15,22.99432318]
[1745261536423,30.39137741,135.19,135.13,7.40028121]
[1745261536596,30.39137741,135.19,135.15,22.99432318]
[1745261538798,30.39137741,135.19,135.13,7.40028121]
[1745261538997,30.39137741,135.19,135.14,22.99432318]
[1745261539320,30.39137741,135.19,135.15,22.99432318]
[1745261540915,22.99432318,135.17,135.13,22.99432318]
[1745261541403,23.13648475,135.18,135.14,22.99432318]
[1745261542013,7.39809129,135.17,135.14,22.99432318]
[1745261542224,30.39241447,135.17,135.12,89.20065126]
[1745261542426,30.39241447,135.17,135.13,22.99432318]
[1745261544017,30.39241447,135.17,135.12,89.20065126]
[1745261544224,30.39241447,135.17,135.12,81.8]
[1745261544225,22.99432318,135.16,135.12,81.8]
[1745261544525,22.99432318,135.15,135.12,81.8]
[1745261545019,0.14216157,135.15,135.12,81.8]
[1745261545720,7.54166002,135.15,135.12,81.8]